fUST/lending_fUST_20240901
["ID","MTS","AMOUNT","RATE_DAILY","PERIOD"]
[336829667,1725196274821,-500.0,0.00026849,2]
[336829668,1725196274831,-673.3,0.00026849,2]
[336829669,1725196274841,-500.0,0.00026849,2]
[336829670,1725196274851,-3.39574043,0.00026849,2]
[336829671,1725196275179,-150.112236,0.000249,5]
[336829672,1725196275189,-500.0,0.00025479,2]
[336829673,1725196275198,-500.0,0.00025479,2]
[336829674,1725196275207,-500.0,0.00025753,2]
[336829675,1725196275217,-1313.28425957,0.00026849,2]
[336829676,1725196275226,-500.0,0.00026849,2]
[336829677,1725196275236,-500.0,0.00026849,2]
[336829678,1725196275245,-682.3,0.00026849,2]
[336829679,1725196275254,-1303.98,0.00026849,2]
[336829680,1725196275263,-620.86,0.00026849,2]
[336829681,1725196275272,-1453.18,0.00026849,2]
[336829682,1725196275281,-500.0,0.00026849,2]
[336829683,1725196275290,-729.76,0.00026849,2]
[336829684,1725196275300,-1639.07,0.00026849,2]
[336829685,1725196275309,-500.0,0.00026849,2]
[336829686,1725196275318,-500.0,0.00026849,2]
[336829687,1725196275328,-1274.99,0.00026849,2]
[336829688,1725196275338,-564.33,0.00026849,2]
[336829689,1725196275347,-327.61870644,0.00026849,2]
[336829690,1725196275359,-826.88,0.00026849,2]
[336829691,1725196275368,-792.27,0.00026849,2]
[336829692,1725196275377,-500.0,0.00026849,2]
[336829693,1725196275387,-14051.44,0.00026849,2]
[336829694,1725196275396,-795.97,0.00026849,2]
[336829695,1725196275405,-613.39,0.00026849,2]
[336829696,1725196275415,-500.0,0.00026849,2]
[336829697,1725196275424,-1433.45,0.00026849,2]
[336829698,1725196275433,-500.0,0.00026849,2]
[336829699,1725196275442,-500.0,0.00026849,2]
[336829700,1725196275452,-789.77,0.00026849,2]
[336829701,1725196275462,-500.0,0.00026849,2]
[336829702,1725196275472,-500.0,0.00026849,2]
[336829703,1725196275481,-470.38715359,0.00026849,2]
[336829704,1725196275494,-542.0,0.00026849,2]
[336829705,1725196275503,-556.15,0.00026849,2]
[336829706,1725196275513,-3366.91,0.00026849,2]
[336829707,1725196275523,-886.17,0.00026849,2]
[336829708,1725196275532,-1362.38,0.00026849,2]
[336829709,1725196275541,-904.8,0.00026849,2]
[336829710,1725196275551,-824.7,0.00026849,2]
[336829711,1725196275561,-500.0,0.00026849,2]
[336829712,1725196275570,-500.0,0.00026849,2]
[336829713,1725196275580,-1054.79,0.00026849,2]
[336829714,1725196275589,-500.0,0.00026849,2]
[336829715,1725196275598,-2829.69,0.00026849,2]
[336829716,1725196275609,-1995.46,0.00026849,2]
[336829717,1725196275618,-3089.2,0.00026849,2]
[336829718,1725196275627,-1419.92,0.00026849,2]
[336829719,1725196275636,-500.0,0.00026849,2]
[336829720,1725196275646,-500.0,0.00026849,2]
[336829721,1725196275655,-662.37,0.00026849,2]
[336829722,1725196275665,-500.0,0.00026849,2]
[336829723,1725196275674,-400.9577001,0.00026849,2]
[336829724,1725196275683,-500.0,0.00026849,2]
[336829725,1725196275692,-706.5,0.00026849,2]
[336829726,1725196275701,-500.0,0.00026849,2]
[336829727,1725196275712,-500.0,0.00026849,2]
[336829728,1725196275722,-566.13,0.00026849,2]
[336829729,1725196275731,-551.14,0.00026849,2]
[336829730,1725196275740,-500.0,0.00026849,2]
[336829731,1725196275751,-520.52,0.00026849,2]
[336829732,1725196275760,-1054.59,0.00026849,2]
[336829733,1725196275769,-1773.9,0.00026849,2]
[336829734,1725196275779,-500.0,0.00026849,2]
[336829735,1725196275790,-500.0,0.00026849,2]
[336829736,1725196275799,-500.0,0.00026849,2]
[336829737,1725196275809,-500.0,0.00026849,2]
[336829738,1725196275818,-4376.36,0.00026849,2]
[336829739,1725196275827,-500.0,0.00026849,2]
[336829740,1725196275837,-500.0,0.00026849,2]
[336829741,1725196275847,-1606.08,0.00026849,2]
[336829742,1725196275858,-630.21,0.00026849,2]
[336829743,1725196275870,-12939.04,0.00026849,2]
[336829744,1725196275879,-500.0,0.00026849,2]
[336829745,1725196275889,-500.0,0.00026849,2]
[336829746,1725196275898,-820.59,0.00026849,2]
[336829747,1725196275907,-706.82,0.00026849,2]
[336829748,1725196275916,-584.15318766,0.00026849,2]
[336829749,1725196275925,-841.46,0.00026849,2]
[336829750,1725196275934,-610.6,0.00026849,2]
[336829751,1725196275943,-601.63013558,0.00026849,2]
[336829752,1725196275952,-1049.71,0.00026849,2]
[336829753,1725196275961,-733.39,0.00026849,2]
[336829754,1725196275971,-3759.25,0.00026849,2]
[336829755,1725196275981,-524.18,0.00026849,2]
[336829756,1725196275993,-510.07,0.00026849,2]
[336829757,1725196276004,-500.0,0.00026849,2]
[336829758,1725196276015,-2098.62,0.00026849,2]
[336829759,1725196276028,-1048.88,0.00026849,2]
[336829760,1725196276039,-500.0,0.00026849,2]
[336829761,1725196276051,-521.79,0.00026849,2]
[336829762,1725196276060,-173.45501698,0.00026849,2]
[336829763,1725196276069,-500.0,0.00026849,2]
[336829764,1725196276079,-1171.86,0.00026849,2]
[336829765,1725196276088,-500.0,0.00026849,2]
[336829766,1725196276097,-500.0,0.00026849,2]
[336829767,1725196276108,-500.0,0.00026849,2]
[336829768,1725196276117,-2880.35,0.00026849,2]
[336829769,1725196276126,-1941.64,0.00026849,2]
[336829770,1725196276136,-500.0,0.00026885,2]
[336829771,1725196276145,-500.0,0.00026885,2]
[336829772,1725196276154,-500.0,0.00026897,2]
[336829773,1725196276163,-500.0,0.00026897,2]
[336829774,1725196276172,-500.0,0.00026897,2]
[336829775,1725196276181,-500.0,0.00026897,2]
[336829776,1725196276190,-500.0,0.00026897,2]
[336829777,1725196276199,-500.0,0.00026897,2]
[336829778,1725196276208,-500.0,0.00026897,2]
[336829779,1725196276217,-500.0,0.00027,120]
[336829780,1725196276227,-666.0,0.00027038,2]
[336829781,1725196276236,-500.0,0.00027123,2]
[336829782,1725196276245,-500.0,0.00027123,2]
[336829783,1725196276255,-500.0,0.00027123,2]
[336829784,1725196276263,-500.0,0.00027123,2]
[336829785,1725196276272,-500.0,0.00027123,2]
[336829786,1725196276281,-500.0,0.00027123,2]
[336829787,1725196276290,-500.0,0.00027123,2]
[336829788,1725196276300,-500.0,0.00027123,2]
[336829789,1725196276309,-500.0,0.00027123,2]
[336829790,1725196276318,-766.67,0.00027123,2]
[336829791,1725196276328,-500.0,0.00027123,2]
[336829792,1725196276337,-500.0,0.00027123,2]
[336829793,1725196276347,-753.59,0.00027123,2]
[336829794,1725196276357,-500.0,0.00027123,2]
[336829795,1725196276366,-500.0,0.00027123,2]
[336829796,1725196276376,-500.0,0.00027123,2]
[336829797,1725196276386,-547.0,0.00027123,2]
[336829798,1725196276395,-500.0,0.00027123,2]
[336829799,1725196276404,-500.0,0.00027123,2]
[336829800,1725196276416,-617.11,0.00027123,2]
[336829801,1725196276425,-675.89,0.00027123,2]
[336829802,1725196276434,-500.0,0.00027123,2]
[336829803,1725196276443,-500.0,0.00027123,2]
[336829804,1725196276453,-575.63174759,0.00027123,2]
[336829805,1725196276462,-500.0,0.00027123,2]
[336829806,1725196276471,-500.0,0.00027123,2]
[336829807,1725196276480,-500.0,0.00027123,2]
[336829808,1725196276490,-500.0,0.00027123,2]
[336829809,1725196276499,-500.0,0.00027123,2]
[336829810,1725196276509,-500.0,0.00027123,2]
[336829811,1725196276518,-500.0,0.00027123,2]
[336829812,1725196276527,-500.0,0.00027123,2]
[336829813,1725196276537,-525.74,0.00027123,2]
[336829814,1725196276546,-1039.17,0.00027123,2]
[336829815,1725196276555,-500.0,0.00027123,2]
[336829816,1725196276564,-774.7,0.00027123,2]
[336829817,1725196276574,-500.0,0.00027123,2]
[336829818,1725196276583,-563.86,0.00027123,2]
[336829819,1725196276593,-614.55,0.00027123,2]
[336829820,1725196276603,-1273.12,0.00027123,2]
[336829821,1725196276612,-2472.41,0.00027123,2]
[336829822,1725196276621,-500.0,0.00027123,2]
[336829823,1725196276630,-500.0,0.00027123,2]
[336829824,1725196276639,-500.0,0.00027123,2]
[336829825,1725196276649,-682.55,0.00027123,2]
[336829826,1725196276659,-802.89,0.00027123,2]
[336829827,1725196276668,-500.0,0.00027123,2]
[336829828,1725196276677,-500.0,0.00027123,2]
[336829829,1725196276687,-500.0,0.00027123,2]
[336829830,1725196276695,-500.0,0.00027123,2]
[336829831,1725196276705,-500.0,0.00027123,2]
[336829832,1725196276719,-314.77863956,0.00027123,2]
[336829833,1725196276728,-673.3,0.00027123,2]
[336829834,1725196276737,-500.0,0.00027123,2]
[336829835,1725196276748,-1316.68,0.00027123,2]
[336829836,1725196276759,-500.0,0.00027123,2]
[336829837,1725196276768,-500.0,0.00027123,2]
[336829838,1725196276777,-682.3,0.00027123,2]
[336829839,1725196276786,-1303.98,0.00027123,2]
[336829840,1725196276797,-620.86,0.00027123,2]
[336829841,1725196276807,-1453.18,0.00027123,2]
[336829842,1725196276816,-500.0,0.00027123,2]
[336829843,1725196276825,-729.76,0.00027123,2]
[336829844,1725196276834,-1639.07,0.00027123,2]
[336829845,1725196276843,-500.0,0.00027123,2]
[336829846,1725196276851,-500.0,0.00027123,2]
[336829847,1725196276861,-1274.99,0.00027123,2]
[336829848,1725196276871,-564.33,0.00027123,2]
[336829849,1725196276881,-826.88,0.00027123,2]
[336829850,1725196276890,-792.27,0.00027123,2]
[336829851,1725196276899,-500.0,0.00027123,2]
[336829852,1725196276908,-14051.44,0.00027123,2]
[336829853,1725196276917,-795.97,0.00027123,2]
[336829854,1725196276926,-613.39,0.00027123,2]
[336829855,1725196276936,-500.0,0.00027123,2]
[336829856,1725196276945,-1433.45,0.00027123,2]
[336829857,1725196276954,-367.23711656,0.00027123,2]
[336829858,1725196276964,-500.0,0.00027123,2]
[336829859,1725196276973,-789.77,0.00027123,2]
[336829860,1725196276983,-500.0,0.00027123,2]
[336829861,1725196276992,-500.0,0.00027123,2]
[336829862,1725196277002,-542.0,0.00027123,2]
[336829863,1725196277011,-556.15,0.00027123,2]
[336829864,1725196277020,-3366.91,0.00027123,2]
[336829865,1725196277030,-886.17,0.00027123,2]
[336829866,1725196277039,-1362.38,0.00027123,2]
[336829867,1725196277049,-904.8,0.00027123,2]
[336829868,1725196277059,-824.7,0.00027123,2]
[336829869,1725196277068,-500.0,0.00027123,2]
[336829870,1725196277077,-500.0,0.00027123,2]
[336829871,1725196277086,-1054.79,0.00027123,2]
[336829872,1725196277095,-500.0,0.00027123,2]
[336829873,1725196277105,-2829.69,0.00027123,2]
[336829874,1725196277114,-1995.46,0.00027123,2]
[336829875,1725196277123,-3089.2,0.00027123,2]
[336829876,1725196277133,-1419.92,0.00027123,2]
[336829877,1725196277142,-619.2443653,0.00027123,2]
[336829878,1725196277151,-500.0,0.00027123,2]
[336829879,1725196277162,-662.37,0.00027123,2]
[336829880,1725196277172,-500.0,0.00027123,2]
[336829881,1725196277182,-500.0,0.00027123,2]
[336829882,1725196277191,-706.5,0.00027123,2]
[336829883,1725196277200,-500.0,0.00027123,2]
[336829884,1725196277210,-500.0,0.00027123,2]
[336829885,1725196277219,-566.13,0.00027123,2]
[336829886,1725196277228,-551.14,0.00027123,2]
[336829887,1725196277237,-500.0,0.00027123,2]
[336829888,1725196277246,-520.52,0.00027123,2]
[336829889,1725196277255,-1054.59,0.00027123,2]
[336829890,1725196277265,-1773.9,0.00027123,2]
[336829891,1725196277274,-500.0,0.00027123,2]
[336829892,1725196277284,-500.0,0.00027123,2]
[336829893,1725196277294,-173.11,0.00027123,2]
[336829894,1725196277303,-500.0,0.00027123,2]
[336829895,1725196277312,-4376.36,0.00027123,2]
[336829896,1725196277321,-500.0,0.00027123,2]
[336829897,1725196277331,-500.0,0.00027123,2]
[336829898,1725196277340,-1606.08,0.00027123,2]
[336829899,1725196277349,-630.21,0.00027123,2]
[336829900,1725196277360,-12939.04,0.00027123,2]
[336829901,1725196277369,-466.90440059,0.00027123,2]
[336829902,1725196277379,-500.0,0.00027123,2]
[336829903,1725196277388,-820.59,0.00027123,2]
[336829904,1725196277397,-706.82,0.00027123,2]
[336829905,1725196277407,-841.46,0.00027123,2]
[336829906,1725196277416,-610.6,0.00027123,2]
[336829907,1725196277426,-1049.71,0.00027123,2]
[336829908,1725196277435,-733.39,0.00027123,2]
[336829909,1725196277445,-3759.25,0.00027123,2]
[336829910,1725196277454,-524.18,0.00027123,2]
[336829911,1725196277464,-510.07,0.00027123,2]
[336829912,1725196277473,-500.0,0.00027123,2]
[336829913,1725196277482,-2098.62,0.00027123,2]
[336829914,1725196277492,-1048.88,0.00027123,2]
[336829915,1725196277501,-500.0,0.00027123,2]
[336829916,1725196277510,-521.79,0.00027123,2]
[336829917,1725196277520,-500.0,0.00027123,2]
[336829918,1725196277530,-1171.86,0.00027123,2]
[336829919,1725196277539,-315.16542427,0.00027123,2]
[336829920,1725196277549,-500.0,0.00027123,2]
[336829921,1725196277558,-500.0,0.00027123,2]
[336829922,1725196277568,-2880.35,0.00027123,2]
[336829923,1725196277577,-1941.64,0.00027123,2]
[336829924,1725196277587,-500.0,0.00027159,2]
[336829925,1725196277596,-500.0,0.00027159,2]
[336829926,1725196277607,-500.0,0.00027171,2]
[336829927,1725196277621,-500.0,0.00027171,2]
[336829928,1725196277630,-509.27926709,0.00027171,2]
[336829929,1725196277639,-500.0,0.00027171,2]
[336829930,1725196277649,-500.0,0.00027171,2]
[336829931,1725196277659,-500.0,0.00027171,2]
[336829932,1725196277668,-500.0,0.00027171,2]
[336829933,1725196277678,-2022.43,0.000272,14]
[336829934,1725196277687,-2000.0,0.00027224,2]
[336829935,1725196277696,-3680.29594088,0.00027313,2]
[336829936,1725196277705,-150.0,0.00027373,2]
[336829937,1725196277718,-313.18393717,0.00027397,2]
[336829938,1725196277727,-505.47283577,0.00027397,2]
[336829939,1725196277736,-500.0,0.00027397,2]
[336829940,1725196277746,-500.0,0.00027397,2]
[336829941,1725196277755,-500.0,0.00027397,2]
[336829942,1725196277766,-500.0,0.00027397,2]
[336829943,1725196277775,-500.0,0.00027397,2]
[336829944,1725196277786,-545.52,0.00027397,2]
[336829945,1725196277796,-500.0,0.00027397,2]
[336829946,1725196277807,-500.0,0.00027397,2]
[336829947,1725196277818,-766.67,0.00027397,2]
[336829948,1725196277828,-500.0,0.00027397,2]
[336829949,1725196277839,-238.38087732,0.00027397,2]
[336829950,1725196277848,-753.59,0.00027397,2]
[336829951,1725196277859,-500.0,0.00027397,2]
[336829952,1725196277868,-500.0,0.00027397,2]
[336829953,1725196277878,-284.97469375,0.00027397,2]
[336829954,1725196277887,-547.0,0.00027397,2]
[336829955,1725196277896,-500.0,0.00027397,2]
[336829956,1725196277905,-500.0,0.00027397,2]
[336829957,1725196277914,-617.11,0.00027397,2]
[336829958,1725196277923,-675.89,0.00027397,2]
[336829959,1725196277932,-500.0,0.00027397,2]
[336829960,1725196277943,-500.0,0.00027397,2]
[336829961,1725196277953,-500.0,0.00027397,2]
[336829962,1725196277964,-500.0,0.00027397,2]
[336829963,1725196277974,-500.0,0.00027397,2]
[336829964,1725196277983,-500.0,0.00027397,2]
[336829965,1725196278134,-500.0,0.00027397,2]
[336829966,1725196278144,-500.0,0.00027397,2]
[336829967,1725196278154,-500.0,0.00027397,2]
[336829968,1725196278164,-500.0,0.00027397,2]
[336829969,1725196278174,-525.74,0.00027397,2]
[336829970,1725196278183,-1039.17,0.00027397,2]
[336829971,1725196278193,-500.0,0.00027397,2]
[336829972,1725196278202,-774.7,0.00027397,2]
[336829973,1725196278211,-500.0,0.00027397,2]
[336829974,1725196278220,-563.86,0.00027397,2]
[336829975,1725196278230,-614.55,0.00027397,2]
[336829976,1725196278240,-1273.12,0.00027397,2]
[336829977,1725196278249,-2472.41,0.00027397,2]
[336829978,1725196278259,-500.0,0.00027397,2]
[336829979,1725196278268,-500.0,0.00027397,2]
[336829980,1725196278277,-500.0,0.00027397,2]
[336829981,1725196278287,-682.55,0.00027397,2]
[336829982,1725196278297,-802.89,0.00027397,2]
[336829983,1725196278306,-560.94649502,0.00027397,2]
[336829984,1725196278315,-500.0,0.00027397,2]
[336829985,1725196278324,-500.0,0.00027397,2]
[336829986,1725196278333,-500.0,0.00027397,2]
[336829987,1725196278343,-500.0,0.00027397,2]
[336829988,1725196278352,-673.3,0.00027397,2]
[336829989,1725196278363,-500.0,0.00027397,2]
[336829990,1725196278372,-1316.68,0.00027397,2]
[336829991,1725196278382,-500.0,0.00027397,2]
[336829992,1725196278392,-500.0,0.00027397,2]
[336829993,1725196278401,-682.3,0.00027397,2]
[336829994,1725196278411,-1303.98,0.00027397,2]
[336829995,1725196278420,-620.86,0.00027397,2]
[336829996,1725196278431,-1453.18,0.00027397,2]
[336829997,1725196278440,-500.0,0.00027397,2]
[336829998,1725196278450,-729.76,0.00027397,2]
[336829999,1725196278460,-1639.07,0.00027397,2]
[336830000,1725196278471,-500.0,0.00027397,2]
[336830001,1725196278480,-500.0,0.00027397,2]
[336830002,1725196278490,-1274.99,0.00027397,2]
[336830003,1725196278499,-564.33,0.00027397,2]
[336830004,1725196278509,-826.88,0.00027397,2]
[336830005,1725196278519,-792.27,0.00027397,2]
[336830006,1725196278530,-500.0,0.00027397,2]
[336830007,1725196278540,-14051.44,0.00027397,2]
[336830008,1725196278550,-795.97,0.00027397,2]
[336830009,1725196278559,-613.39,0.00027397,2]
[336830010,1725196278569,-500.0,0.00027397,2]
[336830011,1725196278578,-1433.45,0.00027397,2]
[336830012,1725196278588,-500.0,0.00027397,2]
[336830013,1725196278597,-789.77,0.00027397,2]
[336830014,1725196278607,-500.0,0.00027397,2]
[336830015,1725196278617,-500.0,0.00027397,2]
[336830016,1725196278627,-542.0,0.00027397,2]
[336830017,1725196278638,-556.15,0.00027397,2]
[336830018,1725196278648,-3366.91,0.00027397,2]
[336830019,1725196278658,-886.17,0.00027397,2]
[336830020,1725196278667,-1362.38,0.00027397,2]
[336830021,1725196278677,-904.8,0.00027397,2]
[336830022,1725196278687,-824.7,0.00027397,2]
[336830023,1725196278697,-500.0,0.00027397,2]
[336830024,1725196278708,-500.0,0.00027397,2]
[336830025,1725196278722,-1054.79,0.00027397,2]
[336830026,1725196278733,-500.0,0.00027397,2]
[336830027,1725196278745,-2829.69,0.00027397,2]
[336830028,1725196278756,-1995.46,0.00027397,2]
[336830029,1725196278765,-3089.2,0.00027397,2]
[336830030,1725196278775,-1419.92,0.00027397,2]
[336830031,1725196278784,-500.0,0.00027397,2]
[336830032,1725196278795,-662.37,0.00027397,2]
[336830033,1725196278804,-500.0,0.00027397,2]
[336830034,1725196278814,-500.0,0.00027397,2]
[336830035,1725196278823,-706.5,0.00027397,2]
[336830036,1725196278832,-500.0,0.00027397,2]
[336830037,1725196278841,-500.0,0.00027397,2]
[336830038,1725196278851,-566.13,0.00027397,2]
[336830039,1725196278860,-551.14,0.00027397,2]
[336830040,1725196278870,-500.0,0.00027397,2]
[336830041,1725196278880,-520.52,0.00027397,2]
[336830042,1725196278892,-1054.59,0.00027397,2]
[336830043,1725196278902,-1773.9,0.00027397,2]
[336830044,1725196278912,-500.0,0.00027397,2]
[336830045,1725196278921,-500.0,0.00027397,2]
[336830046,1725196278931,-500.0,0.00027397,2]
[336830047,1725196278940,-4376.36,0.00027397,2]
[336830048,1725196278950,-500.0,0.00027397,2]
[336830049,1725196278959,-500.0,0.00027397,2]
[336830050,1725196278968,-1606.08,0.00027397,2]
[336830051,1725196278978,-630.21,0.00027397,2]
[336830052,1725196278987,-12939.04,0.00027397,2]
[336830053,1725196278997,-500.0,0.00027397,2]
[336830054,1725196279007,-820.59,0.00027397,2]
[336830055,1725196279016,-706.82,0.00027397,2]
[336830056,1725196279026,-841.46,0.00027397,2]
[336830057,1725196279035,-610.6,0.00027397,2]
[336830058,1725196279044,-1049.71,0.00027397,2]
[336830059,1725196279055,-733.39,0.00027397,2]
[336830060,1725196279066,-3759.25,0.00027397,2]
[336830061,1725196279077,-524.18,0.00027397,2]
[336830062,1725196279086,-510.07,0.00027397,2]
[336830063,1725196279096,-500.0,0.00027397,2]
[336830064,1725196279107,-2098.62,0.00027397,2]
[336830065,1725196279116,-1048.88,0.00027397,2]
[336830066,1725196279125,-500.0,0.00027397,2]
[336830067,1725196279135,-521.79,0.00027397,2]
[336830068,1725196279145,-500.0,0.00027397,2]
[336830069,1725196279154,-1171.86,0.00027397,2]
[336830070,1725196279164,-500.0,0.00027397,2]
[336830071,1725196279174,-500.0,0.00027397,2]
[336830072,1725196279184,-383.68208017,0.00027397,2]
[336830073,1725196279527,-1543.41448878,0.000206,2]
[336830074,1725196279537,-500.0,0.00024657,2]
[336830075,1725196279546,-2496.66791983,0.00027397,2]
[336830076,1725196279555,-1259.41759139,0.00027397,2]
[336830077,1725196279834,-500.0,0.00024535,2]
[336830078,1725196279843,-256.324146,0.00024535,2]
[336830242,1725196573939,182.099242,0.00014247,2]
[336830245,1725196753510,1004.06534239,0.00014,2]
[336830246,1725196773843,1000.0,0.00014,2]
[336830247,1725196873880,-150.0,0.00033944,14]
[336830248,1725196873911,-4151.81251142,0.00033944,120]
[336830249,1725196873939,-198.95204897,0.00033944,21]
[336830250,1725196873966,-58455.04643345,0.00033944,32]
[336830251,1725196873994,-297.9,0.00033944,14]
[336830252,1725196874020,-151.62312286,0.00033944,7]
[336830253,1725196874047,-1591.710804,0.00033944,35]
[336830254,1725196874076,-250.0,0.00033944,120]
[336830255,1725196874103,-500.0,0.00033944,80]
[336830256,1725196874130,-500.0,0.00033944,85]
[336830257,1725196874157,-500.0,0.00033944,90]
[336830258,1725196874359,-500.0,0.00033944,95]
[336830259,1725196874388,-500.0,0.00033944,100]
[336830260,1725196874415,-505.16506489,0.00033944,105]
[336830261,1725196877909,-1000.0,0.00024,24]
[336830262,1725196877943,-11918.87152787,0.00024647,11]
[336830263,1725196877985,-968.19,0.000247,7]
[336830264,1725196878013,-951.59,0.000247,14]
[336830265,1725196878040,-7292.0,0.000247,14]
[336830266,1725196878100,-151.0,0.00026027,7]
[336830267,1725196878141,-2044.9,0.000261,14]
[336830268,1725196878179,-151.0,0.00026575,7]
[336830269,1725196878209,-968.19,0.000267,7]
[336830270,1725196878239,-151.0,0.00026849,7]
[336830271,1725196878273,-951.59,0.000269,14]
[336830272,1725196878302,-7292.0,0.000269,14]
[336830273,1725196878334,-151.0,0.00027123,7]
[336830274,1725196878364,-800.0,0.00027396,7]
[336830275,1725196878392,-2415.44561286,0.00027396,14]
[336830276,1725196878423,-151.0,0.00027397,7]
[336830277,1725196878454,-151.0,0.00027397,7]
[336830278,1725196878482,-151.0,0.00027397,7]
[336830279,1725196878510,-151.0,0.00027397,7]
[336830280,1725196878539,-151.0,0.00027397,7]
[336830281,1725196878568,-151.0,0.00027397,7]
[336830282,1725196878597,-151.0,0.00027397,7]
[336830283,1725196878638,-151.0,0.00027397,7]
[336830284,1725196878687,-151.0,0.00027397,7]
[336830285,1725196878733,-151.0,0.00027397,7]
[336830286,1725196878779,-163.69835,0.00027397,7]
[336830287,1725196878825,-151.0,0.00027397,7]
[336830288,1725196878873,-151.0,0.00027397,7]
[336830289,1725196878918,-151.0,0.00027397,7]
[336830290,1725196878964,-151.0,0.00027397,7]
[336830291,1725196879010,-151.0,0.00027397,7]
[336830292,1725196879057,-151.0,0.00027397,7]
[336830293,1725196879106,-299.158723,0.00027397,7]
[336830294,1725196879160,-151.0,0.00027397,7]
[336830295,1725196879206,-151.0,0.00027397,7]
[336830296,1725196879254,-151.0,0.00027397,7]
[336830297,1725196879300,-151.0,0.00027397,7]
[336830298,1725196879346,-151.0,0.00027397,7]
[336830299,1725196879391,-151.0,0.00027397,7]
[336830300,1725196879438,-299.670675,0.00027397,7]
[336830301,1725196879490,-265.899938,0.00027397,7]
[336830302,1725196879541,-151.0,0.00027397,7]
[336830303,1725196879596,-151.0,0.00027397,7]
[336830304,1725196879649,-151.0,0.00027397,7]
[336830305,1725196879699,-151.0,0.00027397,7]
[336830306,1725196879750,-151.0,0.00027397,7]
[336830307,1725196879801,-151.0,0.00027397,7]
[336830308,1725196879853,-157.460828,0.00027397,7]
[336830309,1725196879912,-151.0,0.00027397,7]
[336830310,1725196879962,-151.0,0.00027397,7]
[336830311,1725196880012,-151.0,0.00027397,7]
[336830312,1725196880062,-151.0,0.00027397,7]
[336830313,1725196880110,-151.0,0.00027397,7]
[336830314,1725196880160,-292.10623,0.00027397,7]
[336830315,1725196880210,-151.0,0.00027397,7]
[336830316,1725196880261,-151.0,0.00027397,7]
[336830317,1725196880310,-151.0,0.00027397,7]
[336830318,1725196880359,-151.0,0.00027397,7]
[336830319,1725196880407,-151.0,0.00027397,7]
[336830320,1725196880458,-151.0,0.00027397,7]
[336830321,1725196880507,-151.0,0.00027397,7]
[336830322,1725196880555,-151.0,0.00027397,7]
[336830323,1725196880604,-151.0,0.00027397,7]
[336830324,1725196880651,-151.0,0.00027397,7]
[336830325,1725196880699,-151.0,0.00027397,7]
[336830326,1725196880746,-151.0,0.00027397,7]
[336830327,1725196880794,-151.0,0.00027397,7]
[336830328,1725196880842,-151.0,0.00027397,7]
[336830329,1725196880890,-151.0,0.00027397,7]
[336830330,1725196880940,-151.0,0.00027397,7]
[336830331,1725196880988,-151.0,0.00027397,7]